Cogmind - Beta 15 *** ADVENTURER MODE // 2025.08.01 @ 22:35:43 Player: Daemos Result: Destroyed by RC-TD0(p) with EM Pulse Gun Performance ------------- Evolutions (0) 0 Regions Visited (3) 600 Robots Destroyed (40) 200 Value Destroyed (1291) 1291 Prototype IDs (4) 80 Alien Tech Used (0) 0 Bonus (0) 0 TOTAL SCORE: 2171 Bonus ------- None Cogmind --------- Core Integrity 0/250 Matter 293/300 Energy 140/140 System Corruption 1% Temperature Cool (0) Movement Walking (100) Location -8/Scraptown Parts ------- > --- POWER (1) -------- Light Deuterium Engine > --- PROPULSION (2) --- Overtuned Titanium Leg Overtuned Titanium Leg > --- UTILITY (2) ------ Scrap Suit > --- WEAPON (2) ------- Assault Rifle Light Cannon > --- INVENTORY (5) ---- Overtuned Titanium Leg Makeshift Salvage Targeting Computer Recalibrator Overtuned Pulse Rifle Overtuned Pulse Rifle Peak State ------------ > --- POWER ------------ Subdweller Power Source > --- PROPULSION ------- Armored Huge Wheel > --- UTILITY ---------- Small Storage Unit Recalibrator > --- WEAPON ----------- Powered Cannon > --- INVENTORY -------- Subdweller Optics Sensor Array Signal Interpreter Utility Shielding Insulated Plating Assault Rifle Light Cannon [Rating: 30] Favorites ----------- Power Subdweller Power Source Engine Subdweller Power Source Power Core Light Nuclear Core Propulsion Aluminum Leg Leg Aluminum Leg Wheel Subdweller Monowheel Utility Small Storage Unit Device Improved Heat Sink Storage Small Storage Unit Protection Utility Shielding Weapon Medium Laser Energy Gun Medium Laser Energy Cannon Powered Cannon Ballistic Gun Assault Rifle Ballistic Cannon Light Cannon Special Weapon Mining Laser Build | -11 -10 -10 -8 ------- Run | Yrd Mat Sub Scr Slots Evolved . | . . . . Power . | . . . . Propulsion . | . . . . Utility . | . . . . Weapon . | . . . . Parts Attached 32 | 7 7 11 7 Power 6 | 1 2 2 1 Engine 4 | 1 . 2 1 Core 2 | . 2 . . Reactor . | . . . . Propulsion 12 | 2 1 5 4 Treads . | . . . . Leg 5 | 2 1 . 2 Wheel 7 | . . 5 2 Hover . | . . . . Flight . | . . . . Utility 6 | 1 3 . 2 Device 4 | . 2 . 2 Storage 1 | 1 . . . Processor . | . . . . Hackware . | . . . . Protection 1 | . 1 . . Artifact . | . . . . Weapon 8 | 3 1 4 . Energy Gun 2 | 2 . . . Energy Cannon 3 | . . 3 . Ballistic Gun 1 | 1 . . . Ballistic Cannon 1 | . 1 . . Launcher . | . . . . Special Weapon 1 | . . 1 . Impact Weapon . | . . . . Slashing Weapon . | . . . . Piercing Weapon . | . . . . Special Melee Weapon . | . . . . Unidentified Prototypes 1 | . . 1 . Parts Lost 5 | . 3 1 1 Power 3 | . 2 1 . Propulsion . | . . . . Utility 1 | . 1 . . Weapon 1 | . . . 1 Highest Loss Streak 1 | . 1 1 1 To Critical Strikes . | . . . . Average Backups 6 | 4 6 7 6 Power . | . . . . Propulsion . | 1 1 . . Utility 3 | . 2 4 4 Weapon 2 | 1 2 3 2 Tool/Special . | . . . . Unused Backups 8 | . 3 1 4 Power 1 | . 1 . . Propulsion 2 | . 2 . . Utility 5 | . . 1 4 Weapon . | . . . . Tool/Special . | . . . . Average Slot Usage (%) 88 | . 99 78 77 Engine 11 | . 5 17 19 Core 5 | . 7 5 . Leg 15 | . 28 2 3 Wheel 7 | . . 14 16 Device 12 | . 12 12 12 Storage 12 | . 14 12 11 Energy Gun 13 | . 25 . . Energy Cannon 5 | . . 11 10 Ballistic Cannon 1 | . 1 . 3 Peak Build Rating 30 | 6 12 27 30 Average Rating 15 | 4 9 24 24 On Entrance 10 | . 6 11 24 Naked Turns . | . . . . Heaviest Build 25 | 14 16 25 25 Greatest Support 40 | 20 20 40 38 Greatest Overweight (x) 3 | 1 . 1 3 Average Overweight (x) . | . . . . Largest Inventory Capacity 8 | 8 8 8 8 Average Capacity 7 | 7 8 8 7 Most Carried 8 | 5 8 8 8 Average Carried 6 | 4 6 7 6 Final Capacity 8 | 8 8 8 5 Final Carried 8 | 4 8 7 5 Class Distribution -------------------- 88% | Mutant 10% | Scavenger-Mutant Dominant Class ---------------- Mutant | -10/Materials Mutant | -10/Subcaves Mutant | -8/Scraptown Resources | -11 -10 -10 -8 ----------- Run | Yrd Mat Sub Scr Matter Collected 723 | 228 261 105 129 Remotely . | . . . . Salvage Created 1504 | . 706 463 335 Parts 98 | . 41 36 21 Haulers Intercepted 2 | . 2 . . Recyclers Shooed . | . . . . Parts Field Recycled . | . . . . Retrieved Matter . | . . . . Parts Self-Destructed . | . . . . Prevented . | . . . . Kills | -11 -10 -10 -8 ------- Run | Yrd Mat Sub Scr Combat Hostiles Destroyed 34 | . 17 12 5 Guns 16 | . 15 1 . Cannons 16 | . 2 9 5 Classes Destroyed 7 | . 5 1 1 Tunneler 1 | . 1 . . Hauler 2 | . 2 . . Watcher 3 | . 3 . . Swarmer 5 | . 5 . . Grunt 12 | . 12 . . Subdweller 12 | . . 12 . Scrapper 5 | . . . 5 Best Kill Streak 4 | . 3 3 4 Combat Bots Only 4 | . 3 3 4 Max Kills in Single Turn 1 | . 1 1 1 Gunslinging . | . . . . Exploded . | . . . . Melee . | . . . . Uniques/NPCs Destroyed . | . . . . Combat | -11 -10 -10 -8 -------- Run | Yrd Mat Sub Scr Hostile Shots Fired 137 | . 85 24 28 Missed 39 | . 26 8 5 Hits 98 | . 59 16 23 Projectile 98 | . 59 16 23 Critical Strikes 7 | . . 1 6 Damage Taken 1126 | . 485 294 347 Core 250 | . 142 38 70 Absorbed by Shields . | . . . . Redirected to Shielding 2 | . 2 . . Ignored by Resistances 335 | . 157 82 96 Core Remaining (%) 100 | 100 . . . Volleys Fired 136 | . 87 32 17 Largest 2 | . 2 2 2 Hottest 110 | . 100 110 50 Shots Fired 187 | . 133 36 18 Gun 121 | . 116 4 1 Cannon 65 | . 17 31 17 Launcher . | . . . . Special 1 | . . 1 . Kinetic 42 | . 29 . 13 Thermal 145 | . 104 36 5 Explosive . | . . . . Electromagnetic . | . . . . Robot Hit Streak 20 | . 20 16 18 Robot Miss Streak 4 | . 4 1 1 Penetration Max . | . . . . Secondary Targets 2 | . 2 . . Max Gunslinging Chain 1 | . 1 . . Shots Hit Robots 141 | . 99 27 15 Core Hits 61 | . 40 13 8 Critical Kills 2 | . . 2 . Critical Parts Destroyed . | . . . . Critical Strikes 10 | . 8 2 . Burn 8 | . 8 . . Meltdown 2 | . . 2 . Melee Attacks . | . . . . Impact . | . . . . Slashing . | . . . . Piercing . | . . . . Sneak Attacks . | . . . . Combat Hostiles . | . . . . Follow-up Attacks . | . . . . Damage Inflicted 2808 | . 1312 1108 388 Guns 1099 | . 1074 25 . Cannons 1685 | . 238 1059 388 Explosions . | . . . . Melee . | . . . . Ramming . | . . . . Kinetic 519 | . 330 . 189 Thermal 2289 | . 982 1108 199 Explosive . | . . . . Electromagnetic . | . . . . Impact . | . . . . Slashing . | . . . . Piercing . | . . . . Highest Corruption . | . . . . Average Corruption . | . . . . Corruption Purged . | . . . . Corruption Blocked . | . . . . Overload Shots . | . . . . Overflow Damage 20 | . 14 . 6 Projectiles 20 | . 14 . 6 Explosions . | . . . . Melee . | . . . . Knockbacks 9 | . 5 . 4 Impact . | . . . . Kinetic 9 | . 5 . 4 Secondary . | . . . . Self-Inflicted Damage . | . . . . Shots . | . . . . Rammed . | . . . . Targets Rammed . | . . . . Kicked . | . . . . Crushed . | . . . . Highest Temperature 219 | . 219 4 64 Average Temperature 53 | . 56 4 30 Received Heat Transfer 750 | . 300 72 378 Effects 3 | . 3 . . Interference 3 | . 3 . . Siege Activations . | . . . . Martial Activations . | . . . . Shielding Activations . | . . . . Robots Disrupted . | . . . . Combat Hostiles . | . . . . Robots Corrupted . | . . . . Combat Hostiles . | . . . . Parts Fried . | . . . . Impact Corruptions . | . . . . Robots Melted 2 | . . 2 . Combat Hostiles 2 | . . 2 . Parts Melted 17 | . 7 7 3 Heat Transferred 3787 | . 3515 272 . Parts Sabotaged . | . . . . Parts Stolen . | . . . . Parts Stripped . | . . . . Power Chain Reactions . | . . . . Alert | -11 -10 -10 -8 ------- Run | Yrd Mat Sub Scr Maximum Alert Level . | . . . . Low Security (%) 100 | 100 100 . . Level 1 . | . . . . Level 2 . | . . . . Level 3 . | . . . . Level 4 . | . . . . Level 5 . | . . . . High Security . | . . . . Max Security . | . . . . Peak Influence 110 | . 110 . . Initial . | . . . . Average 26 | . 31 . . Influence Increases 639 | . 639 . . Destroy 0b10 Robot/C 340 | . 340 . . Destroy 0b10 Robot/NC 30 | . 30 . . Destroy Leader 90 | . 90 . . Successful Hack 48 | . 48 . . Disable Machine 9 | . 9 . . Destroy Structure 2 | . 2 . . Lose Combat Pursuer 120 | . 120 . . Influence Decreases 639 | . 639 . . Time Decay 609 | . 609 . . Lost Part 30 | . 30 . . Squads Dispatched 5 | . 5 . . Investigation 5 | . 5 . . Extermination . | . . . . Reinforcement . | . . . . Assault . | . . . . Garrison . | . . . . Intercept . | . . . . Searches Triggered . | . . . . Construction Impeded . | . . . . Haulers Reinforced . | . . . . Active Scanning Responses . | . . . . Cargo Convoy Interrupts . | . . . . Stealth | -11 -10 -10 -8 --------- Run | Yrd Mat Sub Scr Distress Signals 1 | . 1 . . Communications Jammed . | . . . . Distress Signals . | . . . . Times Spotted 46 | . 27 11 8 Peak Tracking Total 7 | . 7 3 7 Tactical Retreats 3 | . 3 . . Traps | -11 -10 -10 -8 ------- Run | Yrd Mat Sub Scr Traps Triggered . | . . . . Indirectly . | . . . . Trap Hack Attempts . | . . . . Triggered . | . . . . Disarmed . | . . . . Reprogrammed . | . . . . Reused . | . . . . Traps Extracted . | . . . . Installed . | . . . . Triggered . | . . . . Machines | -11 -10 -10 -8 ---------- Run | Yrd Mat Sub Scr Machines Disabled 3 | . 1 . 2 Max in Single Turn 1 | . 1 . 1 Machines Repaired . | . . . . Machines Dismantled . | . . . . Machines Sabotaged . | . . . . Overloaded Fab Kills . | . . . . Hacking | -11 -10 -10 -8 --------- Run | Yrd Mat Sub Scr Machines Accessed 9 | . 8 . 1 Terminals 8 | . 8 . . Fabricators . | . . . . Repair Stations . | . . . . Recycling Units . | . . . . Scanalyzers . | . . . . Garrison Access . | . . . . Total Hacks 36 | . 27 . 9 Successful 19 | . 10 . 9 Failed 17 | . 17 . . Catastrophic 4 | . 4 . . Database Lockouts . | . . . . Manual 16 | . 16 . . Terminals 27 | . 27 . . Fabricators . | . . . . Repair Stations . | . . . . Recycling Units . | . . . . Scanalyzers . | . . . . Garrison Access . | . . . . Terminal Hacks 17 | . 8 . 9 Record 9 | . . . 9 Part Schematic 1 | . 1 . . Prototype ID Bank 1 | . 1 . . Level Access Points 1 | . 1 . . Branch Access Points 1 | . 1 . . Locate Traps 2 | . 2 . . Recall Reinforcements 1 | . 1 . . Zone Layout 1 | . 1 . . Fabricator Hacks . | . . . . Repair Station Hacks . | . . . . Recycling Unit Hacks . | . . . . Scanalyzer . | . . . . Garrison Access Hacks . | . . . . Unauthorized Hacks 2 | . 2 . . Terminals 2 | . 2 . . Botnet 2 | . 2 . . Fabricators . | . . . . Repair Stations . | . . . . Recycling Units . | . . . . Scanalyzers . | . . . . Garrison Access . | . . . . Data Cores Recovered . | . . . . Used . | . . . . Hacking Detections 7 | . 7 . . Full Trace Events 3 | . 3 . . Feedback Events . | . . . . Feedback Blocked . | . . . . Robot Schematics Acquired . | . . . . Robots Built . | . . . . Authchips . | . . . . Time . | . . . . Total Robot Build Rating . | . . . . Part Schematics Acquired 1 | . 1 . . Parts Built . | . . . . Authchips . | . . . . Time . | . . . . Total Part Build Rating . | . . . . Parts Repaired . | . . . . Time . | . . . . Parts Recycled . | . . . . Recycled Matter . | . . . . Retrieved Matter . | . . . . Retrieved Components . | . . . . Parts Scanalyzed . | . . . . Part Schematics Acquired . | . . . . Parts Damaged . | . . . . Bothacking | -11 -10 -10 -8 ------------ Run | Yrd Mat Sub Scr Used RIF Installer . | . . . . Robots Hacked . | . . . . Non-combat . | . . . . Combat . | . . . . Robot Hacks Applied . | . . . . Relay Couplers Released . | . . . . Fabnet Peak Effective % . | . . . . Robots Rewired . | . . . . Allies Hacked . | . . . . Hacks Repelled . | . . . . Allies | -11 -10 -10 -8 -------- Run | Yrd Mat Sub Scr Total Allies . | . . . . Largest Group . | . . . . Highest-Rated Group . | . . . . Highest-Rated Ally . | . . . . Total Orders . | . . . . Ally Attacks . | . . . . Total Damage . | . . . . Kills . | . . . . Allies Corrupted . | . . . . Allies Melted . | . . . . Intel | -11 -10 -10 -8 ------- Run | Yrd Mat Sub Scr Active Infowar (turns) 1079 | . 1079 . . Sensors 1079 | . 1079 . . Robot Analysis Total . | . . . . Derelict Logs Recovered 2 | . . 2 . Drone Launches . | . . . . Drone Recoveries . | . . . . Exploration | -11 -10 -10 -8 ------------- Run | Yrd Mat Sub Scr Turns Passed 4041 | 305 1872 1362 502 Spaces Moved 2774 | 106 1252 1041 375 Core 11 | 10 . . 1 Treads . | . . . . Legs 1437 | 96 1252 50 39 Wheels 1326 | . . 991 335 Hover . | . . . . Flight . | . . . . Fastest Speed 50 | 50 120 110 100 Average Speed 117 | 115 120 118 104 Slowest Speed 200 | 120 120 190 200 Overloaded Moves . | . . . . Propulsion Burnouts . | . . . . Robots Hopped . | . . . . Potential Cave-ins . | . . . . Cave-ins Triggered . | . . . . Exploration Rate (%) 45 | 9 98 50 24 Regions Visited 3 Branch Regions 2 Pre-discovered Areas 1 | . . 1 . Known Exits Taken . | . . . . Unknown Exits Taken 3 | 1 1 1 . Scrap Searched 3 | . . . 3 Spaces Dug 1 | . . 1 . Terrain Destroyed 3 | . . 3 . Melee . | . . . . Projectile 3 | . . 3 . AOE . | . . . . Terrain Rammed . | . . . . Walls Destroyed . | . . . . Machines Disabled . | . . . . Actions | -11 -10 -10 -8 --------- Run | Yrd Mat Sub Scr Total 3388 | 286 1487 1141 474 Wait 389 | 166 125 45 53 Move 2771 | 105 1251 1040 375 Hop . | . . . . Pick Up 21 | 3 10 2 6 Fast Attach 21 | 7 1 8 5 Attach 9 | 2 3 1 3 Detach 4 | 3 . . 1 Swap 9 | . 6 2 1 Drop 28 | . 4 11 13 Fire 136 | . 87 32 17 Melee . | . . . . Ram . | . . . . Kick . | . . . . Crush . | . . . . Escape Stasis . | . . . . Rewire . | . . . . Trap . | . . . . Miscellaneous . | . . . . Route ------- -11/Scrapyard -10/Materials (discovered 5 exits: *Mat x3 / *Min / [*Sub]) -10/Subcaves (discovered 3 exits: [*Mat x2] / *Scr) -8/Scraptown History --------- Turn | Location | Event 13 | -11/Scrapyard | Discovered new exit (range 15) 306 | -11/Scrapyard | Entered Materials 332 | -10/Materials | Build established: Mutant 496 | -10/Materials | Discovered new exit (range 6) 617 | -10/Materials | Identified exit to Mines 719 | -10/Materials | Discovered new exit (range 15) 1306 | -10/Materials | Derelicts attacked the area 1344 | -10/Materials | Discovered new exit (range 16) 1756 | -10/Materials | Core integrity fell below 50% 2061 | -10/Materials | Discovered new exit (range 11) 2109 | -10/Materials | Identified exit to Materials 2178 | -10/Materials | Entered Subcaves 2179 | -10/Subcaves | Approached by a straggling Scientist 2198 | -10/Subcaves | Shifting Twisted Machinery released Sub. Monowheel 2199 | -10/Subcaves | A Subdweller sparked back to life 2199 | -10/Subcaves | A Subdweller sparked back to life 2199 | -10/Subcaves | A Subdweller sparked back to life 2258 | -10/Subcaves | Found Prototype Energy Cannon 2258 | -10/Subcaves | Identified Powered Cannon 2260 | -10/Subcaves | Attached Powered Cannon, gained temporary slot: Power 2289 | -10/Subcaves | Shifting Twisted Machinery released Riot Gun 2493 | -10/Subcaves | Learned Materials terminal intel 2570 | -10/Subcaves | A swath of the cavern ceiling suddenly collapsed 2689 | -10/Subcaves | Build established: Scavenger-Mutant 2749 | -10/Subcaves | Shifting Twisted Machinery released Battle Rifle 2756 | -10/Subcaves | Shifting Twisted Machinery released Sub. Power Source 2848 | -10/Subcaves | Scientist uncovered a shortcut to Scraptown 3082 | -10/Subcaves | Build established: Mutant 3119 | -10/Subcaves | Discovered new exit (range 6) 3152 | -10/Subcaves | Discovered new exit (range 15) 3540 | -10/Subcaves | Entered Scraptown 3587 | -8/Scraptown | Heard Great Nut preacher, LISTEN AND RECITE! 3818 | -8/Scraptown | Attacked by Scraptown defenders 3958 | -8/Scraptown | Core integrity fell below 20% 3979 | -8/Scraptown | Found Scrap Suit 4042 | -8/Scraptown | Destroyed by RC-TD0(p) with EM Pulse Gun Last Messages --------------- T9-WTY(j) destroyed. 52-YDK(j) knocked back. 52-YDK(j) destroyed. Dropped Sub. Optics. Dropped Signal Interpreter. Dropped Utility Shielding. Dropped Insulated Plating. Dropped Sensor Array. Dropped Sml. Storage Unit. Acquired Scrap Suit. Acquired 45 matter. Dropped Arm. Huge Wheel. Acquired Ovr. Titanium Leg. Acquired 10 matter. Acquired Ovr. Titanium Leg. Acquired 10 matter. Acquired Mak. Salvage Targeting Computer. Acquired Ovr. Titanium Leg. Acquired Ovr. Pulse Rifle. TB-UHQ(p) knocked back. Map ----- +----------------------------------------------------+ | | | | | | | | | | | | | | | | | | | | | | | | | | | | | | | | | | | | | | | | | | | ????????????????????????????????? | | ???????????#########????????????? | | ??????????##"""""""#????????????? | | ????#######! %%%= "#????????????? | | ????# @ ! pp""" "#????????????? | | ????# #####!"="""!"#????????????? | | ????# #???##"%"""!"#????????????? | | ????# #????#=* *% "#????????????? | | ????# #??###""% """###??????????? | | ??### #### ! %!% #??????????? | | ??#"" """" !!! """"""?????? | | ??#" """" !! ??? | | ??#"" """ | | ??#""" ? | | ??#""" " ###### ####? | | ??#"" " #??????????? | | ??#""""""" #??????????? | | ??######## !! #??????????? | | ?????????###=%#""" ""#??????????? | | ???????????# [#""" "#??????????? | | ???????????# #""" "#??????????? | | ???????????# #??? "???????????? | | ???????????# #??? "???????????? | | ??????????#" #??? ""???????????? | | ??????????## #??? #????????????? | | ???????????# #??? ?????????????? | | ????####???# #?????????????????? | | ???#"" #??## ##????????????????? | | ???#"" #??# ###########??????? | +----------------------------------------------------+ Best States ------------- Heat Dissipation 39 Energy Generation 25 Energy Capacity 300 Matter Stores 300 Matter Capacity 300 Sight Range 16 Robot Scan Range 14 Terrain Scan Density 10 Resistance: KI 20 Resistance: TH 20 Resistance: EX 20 Resistance: EM 20 Resistance: I 20 Resistance: S 20 Resistance: P 20 Utility Shielding 33 Evasion (%) 55 Offensive Hacking 10 Item Schematics ----------------- Imp. Light Cannon | -10/Materials | Hacked Robot Schematics ------------------ None Fabricated ------------ Nothing Repaired ---------- Nothing Alien Tech Used ----------------- None Achievements -------------- None Challenges ------------ None Game ------ Seed chad Manual? 1 Play Time 00:39:44 Cumulative 101.4 hours Start 2025.08.01 @ 21:48:53 End 2025.08.01 @ 22:35:43 Sessions 1 Manual Loads 0 Difficulty Adventurer Special Mode None Game No. 29 Rogue 0 Adventurer 29 Explorer 0 Win Type - Total 2 Types 1/0/1/0/0/0/0/0/0/0 Lore% 30 Gallery% 48 Achievement% 52 Wizard Run 0 Options --------- Layout 0 ASCII 0 Keyboard 0 Movement Numpad Keybinds 0 Fullscreen 1 Font 24/Smallcaps Map View 76x50 Zoom Use 0% Tactical HUD 0 Map Filters NONE Filters NONE Steam 1 RUN: 6f8e6ddc-ddde-42ca-9e1b-fa301e37cac9